[Event "*** Titled Tuesday Blitz"]
[Site "Chess.com"]
[Date "2020.05.05"]
[Round "6"]
[White "Beca95"]
[Black "fmshawnrl123"]
[Result "1-0"]
[WhiteElo "2871"]
[BlackElo "2699"]
[TimeControl "180+1"]
[EndTime "11:07:08 PDT"]
[Termination "Beca95 won by resignation"]

1. Nf3 {[%clk 0:03:00.9]} 1... d5 {[%clk 0:02:59.3]} 2. c4 {[%clk 0:03:00.4]}
2... e6 {[%clk 0:02:56.4]} 3. e3 {[%clk 0:02:58.2]} 3... Nf6 {[%clk 0:02:56.4]}
4. Nc3 {[%clk 0:02:57.7]} 4... b6 {[%clk 0:02:55.5]} 5. b3 {[%clk 0:02:56.3]}
5... Bb7 {[%clk 0:02:55.2]} 6. Bb2 {[%clk 0:02:56.6]} 6... Be7 {[%clk
0:02:55.1]} 7. Be2 {[%clk 0:02:52.4]} 7... O-O {[%clk 0:02:55.3]} 8. O-O {[%clk
0:02:52]} 8... Nbd7 {[%clk 0:02:55.8]} 9. d4 {[%clk 0:02:51.4]} 9... dxc4 {[%clk
0:02:50.7]} 10. bxc4 {[%clk 0:02:49.6]} 10... c5 {[%clk 0:02:50.3]} 11. d5
{[%clk 0:02:47.6]} 11... exd5 {[%clk 0:02:48.9]} 12. cxd5 {[%clk 0:02:48.5]}
12... Bd6 {[%clk 0:02:46.7]} 13. e4 {[%clk 0:02:47.9]} 13... Re8 {[%clk
0:02:41.3]} 14. Nd2 {[%clk 0:02:41.4]} 14... Be5 {[%clk 0:02:35]} 15. Qc2 {[%clk
0:02:21.2]} 15... a6 {[%clk 0:02:30.7]} 16. a4 {[%clk 0:02:19.5]} 16... Qc7
{[%clk 0:02:29.9]} 17. g3 {[%clk 0:01:54.6]} 17... Re7 {[%clk 0:02:29]} 18. Nc4
{[%clk 0:01:45.3]} 18... Rae8 {[%clk 0:02:05.2]} 19. Nxe5 {[%clk 0:01:43.9]}
19... Rxe5 {[%clk 0:01:35.3]} 20. f3 {[%clk 0:01:42.3]} 20... c4 {[%clk
0:01:26.7]} 21. Kg2 {[%clk 0:01:28]} 21... Nc5 {[%clk 0:01:23.6]} 22. Rad1
{[%clk 0:01:25.2]} 22... Qd7 {[%clk 0:01:18.4]} 23. Bxc4 {[%clk 0:01:12.8]}
23... Rc8 {[%clk 0:01:02.9]} 24. Be2 {[%clk 0:01:11.4]} 24... b5 {[%clk
0:00:21.2]} 25. axb5 {[%clk 0:01:10.4]} 25... axb5 {[%clk 0:00:22.1]} 26. Bxb5
{[%clk 0:01:09.5]} 26... Qd8 {[%clk 0:00:20]} 27. Qf2 {[%clk 0:01:04.8]} 27...
Qa5 {[%clk 0:00:13.4]} 28. Ra1 {[%clk 0:00:54.5]} 28... Qb4 {[%clk 0:00:13.4]}
29. Rfb1 {[%clk 0:00:54.5]} 29... Nb3 {[%clk 0:00:08.5]} 30. Ra4 {[%clk
0:00:53.5]} 30... Qe7 {[%clk 0:00:06]} 31. Nd1 {[%clk 0:00:47.6]} 31... Nc5
{[%clk 0:00:04.2]} 32. Bxe5 {[%clk 0:00:46.7]} 32... Qxe5 {[%clk 0:00:05.1]} 33.
Rc4 {[%clk 0:00:46.1]} 33... Nxd5 {[%clk 0:00:02.6]} 34. exd5 {[%clk 0:00:45.3]}
34... Qxd5 {[%clk 0:00:01.4]} 35. Rbc1 {[%clk 0:00:41.9]} 35... Qe5 {[%clk
0:00:01.7]} 1-0

[Event "*** Titled Tuesday Blitz"]
[Site "Chess.com"]
[Date "2020.05.05"]
[Round "6"]
[White "XDPS"]
[Black "Vesper2018"]
[Result "1-0"]
[WhiteElo "2723"]
[BlackElo "2178"]
[TimeControl "180+1"]
[EndTime "11:07:08 PDT"]
[Termination "XDPS won on time"]

1. d4 {[%clk 0:03:00.9]} 1... Nf6 {[%clk 0:02:59.8]} 2. Nf3 {[%clk 0:02:59.4]}
2... g6 {[%clk 0:03:00.1]} 3. Nbd2 {[%clk 0:02:58.6]} 3... d5 {[%clk 0:02:58.5]}
4. e3 {[%clk 0:02:58.8]} 4... Bg7 {[%clk 0:02:58.5]} 5. b4 {[%clk 0:02:59.1]}
5... a5 {[%clk 0:02:54.8]} 6. b5 {[%clk 0:02:59.3]} 6... O-O {[%clk 0:02:53.8]}
7. c4 {[%clk 0:02:58]} 7... c6 {[%clk 0:02:52.3]} 8. a4 {[%clk 0:02:55.4]} 8...
dxc4 {[%clk 0:02:47.4]} 9. Bxc4 {[%clk 0:02:52.8]} 9... cxb5 {[%clk 0:02:47.6]}
10. Bxb5 {[%clk 0:02:50.4]} 10... Nc6 {[%clk 0:02:43.5]} 11. O-O {[%clk
0:02:49.9]} 11... Nb4 {[%clk 0:02:43.6]} 12. Ba3 {[%clk 0:02:49.2]} 12... Bf5
{[%clk 0:02:28.1]} 13. Bxb4 {[%clk 0:02:48.3]} 13... axb4 {[%clk 0:02:27.9]} 14.
Qb3 {[%clk 0:02:48.1]} 14... Ne4 {[%clk 0:02:17.2]} 15. Qxb4 {[%clk 0:02:43.2]}
15... Nd6 {[%clk 0:02:02.7]} 16. Be2 {[%clk 0:02:38.1]} 16... Qa5 {[%clk
0:01:51.2]} 17. Qxa5 {[%clk 0:02:32]} 17... Rxa5 {[%clk 0:01:51.3]} 18. Nb3
{[%clk 0:02:31.5]} 18... Raa8 {[%clk 0:01:51.1]} 19. a5 {[%clk 0:02:31.7]} 19...
Rfc8 {[%clk 0:01:43.8]} 20. Rfc1 {[%clk 0:02:30.3]} 20... Rxc1+ {[%clk
0:01:38.9]} 21. Nxc1 {[%clk 0:02:20.1]} 21... Be4 {[%clk 0:01:32.7]} 22. Nb3
{[%clk 0:02:15.2]} 22... Bxf3 {[%clk 0:01:21]} 23. Bxf3 {[%clk 0:02:11]} 23...
e5 {[%clk 0:01:21.2]} 24. dxe5 {[%clk 0:02:04.8]} 24... Bxe5 {[%clk 0:01:20.8]}
25. Rc1 {[%clk 0:01:59.9]} 25... Kg7 {[%clk 0:01:11.5]} 26. g3 {[%clk
0:01:58.3]} 26... Ra6 {[%clk 0:01:07.9]} 27. Rc5 {[%clk 0:01:56.3]} 27... Bf6
{[%clk 0:01:06.3]} 28. Rc7 {[%clk 0:01:51.1]} 28... Ra7 {[%clk 0:00:40.3]} 29.
Rd7 {[%clk 0:01:45.2]} 29... Be5 {[%clk 0:00:39.3]} 30. Bd5 {[%clk 0:01:43.1]}
30... Nb5 {[%clk 0:00:20.1]} 31. Rxf7+ {[%clk 0:01:39]} 31... Kh6 {[%clk
0:00:19.5]} 32. Rxb7 {[%clk 0:01:39.6]} 32... Rxb7 {[%clk 0:00:14.2]} 33. Bxb7
{[%clk 0:01:40.5]} 33... g5 {[%clk 0:00:12]} 34. a6 {[%clk 0:01:40.5]} 34... g4
{[%clk 0:00:11]} 35. Na5 {[%clk 0:01:27.8]} 35... Na7 {[%clk 0:00:10.2]} 36. Nc4
{[%clk 0:01:26.7]} 36... Bc7 {[%clk 0:00:09.7]} 37. Be4 {[%clk 0:01:22.3]} 37...
Kg7 {[%clk 0:00:09.3]} 38. Kg2 {[%clk 0:01:21.5]} 38... h5 {[%clk 0:00:09.5]}
39. h4 {[%clk 0:01:19]} 39... Kf6 {[%clk 0:00:07.5]} 40. Bd5 {[%clk 0:01:16.4]}
40... Nb5 {[%clk 0:00:07]} 41. e4 {[%clk 0:01:15.2]} 41... Bb8 {[%clk
0:00:06.7]} 42. Bc6 {[%clk 0:01:08.1]} 42... Nd4 {[%clk 0:00:06.1]} 43. Be8
{[%clk 0:01:07.3]} 43... Nf3 {[%clk 0:00:03.2]} 44. Bxh5 {[%clk 0:01:05.3]} 1-0

[Event "*** Titled Tuesday Blitz"]
[Site "Chess.com"]
[Date "2020.05.05"]
[Round "6"]
[White "TregubovP"]
[Black "JonahWillow"]
[Result "1-0"]
[WhiteElo "2496"]
[BlackElo "2676"]
[TimeControl "180+1"]
[EndTime "11:07:09 PDT"]
[Termination "TregubovP won by resignation"]

1. e4 {[%clk 0:03:00.9]} 1... c5 {[%clk 0:02:59.8]} 2. Nf3 {[%clk 0:03:00.6]}
2... Nc6 {[%clk 0:02:57.7]} 3. c3 {[%clk 0:03:00.5]} 3... Nf6 {[%clk 0:02:57.5]}
4. e5 {[%clk 0:02:59.5]} 4... Nd5 {[%clk 0:02:58.2]} 5. d4 {[%clk 0:02:59.9]}
5... cxd4 {[%clk 0:02:59.1]} 6. cxd4 {[%clk 0:02:59.7]} 6... g6 {[%clk
0:02:58.7]} 7. Bc4 {[%clk 0:02:57.6]} 7... Nb6 {[%clk 0:02:58.7]} 8. Be2 {[%clk
0:02:47.9]} 8... Bg7 {[%clk 0:02:57.2]} 9. O-O {[%clk 0:02:45.7]} 9... O-O
{[%clk 0:02:57.7]} 10. Nc3 {[%clk 0:02:45.2]} 10... d6 {[%clk 0:02:57.8]} 11.
Bf4 {[%clk 0:02:40.9]} 11... Bg4 {[%clk 0:02:54.4]} 12. exd6 {[%clk 0:02:37]}
12... exd6 {[%clk 0:02:54.4]} 13. h3 {[%clk 0:02:35.1]} 13... Bxf3 {[%clk
0:02:53.1]} 14. Bxf3 {[%clk 0:02:35.2]} 14... Nxd4 {[%clk 0:02:52.3]} 15. Bxb7
{[%clk 0:02:34.5]} 15... Rb8 {[%clk 0:02:52.8]} 16. Ba6 {[%clk 0:02:30.9]} 16...
Re8 {[%clk 0:02:17.5]} 17. Qd2 {[%clk 0:02:24.5]} 17... Qd7 {[%clk 0:02:04.1]}
18. Rfe1 {[%clk 0:02:12]} 18... Na4 {[%clk 0:02:00.3]} 19. Rxe8+ {[%clk
0:01:49.9]} 19... Rxe8 {[%clk 0:01:51.8]} 20. Re1 {[%clk 0:01:50.3]} 20... Rxe1+
{[%clk 0:01:35.1]} 21. Qxe1 {[%clk 0:01:49.8]} 21... Nxb2 {[%clk 0:01:31.2]} 22.
Nd5 {[%clk 0:01:46.9]} 22... Ne6 {[%clk 0:01:24.1]} 23. Be3 {[%clk 0:01:35.1]}
23... Na4 {[%clk 0:01:19.4]} 24. Qb4 {[%clk 0:01:26.1]} 24... Nac5 {[%clk
0:01:15.9]} 25. Bc4 {[%clk 0:01:19.2]} 25... h5 {[%clk 0:01:01.3]} 26. h4 {[%clk
0:01:18.3]} 26... Kh7 {[%clk 0:00:59.7]} 27. Qb8 {[%clk 0:01:14.3]} 27... a5
{[%clk 0:00:52]} 28. g3 {[%clk 0:01:11.7]} 28... Qd8 {[%clk 0:00:49.8]} 29. Qa7
{[%clk 0:01:07.5]} 29... Kg8 {[%clk 0:00:35.4]} 30. Ne7+ {[%clk 0:01:04.9]}
30... Kf8 {[%clk 0:00:34.6]} 31. Nxg6+ {[%clk 0:00:35.1]} 31... fxg6 {[%clk
0:00:33.1]} 32. Bxc5 {[%clk 0:00:35.1]} 32... Nc7 {[%clk 0:00:12.9]} 33. Bb6
{[%clk 0:00:32.6]} 1-0

[Event "*** Titled Tuesday Blitz"]
[Site "Chess.com"]
[Date "2020.05.05"]
[Round "6"]
[White "BabyBoss31"]
[Black "Jbd735"]
[Result "1-0"]
[WhiteElo "2299"]
[BlackElo "2425"]
[TimeControl "180+1"]
[EndTime "11:07:09 PDT"]
[Termination "BabyBoss31 won on time"]

1. d4 {[%clk 0:03:00.9]} 1... d5 {[%clk 0:02:59.5]} 2. c4 {[%clk 0:03:01.6]}
2... c6 {[%clk 0:02:59.7]} 3. Nf3 {[%clk 0:03:00.6]} 3... e6 {[%clk 0:02:59.5]}
4. Qc2 {[%clk 0:02:59.6]} 4... Nf6 {[%clk 0:02:57]} 5. g3 {[%clk 0:03:00.2]}
5... dxc4 {[%clk 0:02:56.6]} 6. Qxc4 {[%clk 0:02:58.8]} 6... b5 {[%clk
0:02:56.6]} 7. Qc2 {[%clk 0:02:57.5]} 7... Bb7 {[%clk 0:02:56.1]} 8. Bg2 {[%clk
0:02:56.7]} 8... Nbd7 {[%clk 0:02:48.7]} 9. O-O {[%clk 0:02:56.6]} 9... Be7
{[%clk 0:02:47.2]} 10. Nbd2 {[%clk 0:02:54.2]} 10... c5 {[%clk 0:02:40.9]} 11.
dxc5 {[%clk 0:02:28]} 11... Nxc5 {[%clk 0:02:39.9]} 12. Nb3 {[%clk 0:02:21.7]}
12... Rc8 {[%clk 0:02:31]} 13. Nxc5 {[%clk 0:02:19.1]} 13... Bxc5 {[%clk
0:02:30.4]} 14. Qb3 {[%clk 0:02:18.3]} 14... Qb6 {[%clk 0:02:29.9]} 15. a4
{[%clk 0:02:06.6]} 15... b4 {[%clk 0:01:55.5]} 16. Be3 {[%clk 0:01:48.6]} 16...
Bxe3 {[%clk 0:01:51.8]} 17. Qxe3 {[%clk 0:01:49.5]} 17... Qxe3 {[%clk
0:01:51.1]} 18. fxe3 {[%clk 0:01:50.4]} 18... a5 {[%clk 0:01:41.9]} 19. Rac1
{[%clk 0:01:45.1]} 19... Ke7 {[%clk 0:01:37.8]} 20. Nd4 {[%clk 0:01:41.5]} 20...
Bxg2 {[%clk 0:01:25.1]} 21. Kxg2 {[%clk 0:01:41.6]} 21... Nd5 {[%clk 0:01:13.5]}
22. Kf3 {[%clk 0:01:25.4]} 22... Nb6 {[%clk 0:01:07.7]} 23. b3 {[%clk
0:01:08.9]} 23... Rc3 {[%clk 0:00:45]} 24. Rxc3 {[%clk 0:00:51.5]} 24... bxc3
{[%clk 0:00:45.9]} 25. Rc1 {[%clk 0:00:50.7]} 25... Rc8 {[%clk 0:00:44.6]} 26.
Nb5 {[%clk 0:00:47.8]} 26... Nd5 {[%clk 0:00:19.6]} 27. e4 {[%clk 0:00:47.1]}
27... Nb4 {[%clk 0:00:16.5]} 28. Nxc3 {[%clk 0:00:44]} 28... h5 {[%clk
0:00:09.2]} 29. Nd5+ {[%clk 0:00:41.1]} 29... exd5 {[%clk 0:00:04.3]} 30. Rxc8
{[%clk 0:00:40.2]} 30... dxe4+ {[%clk 0:00:03.3]} 31. Kxe4 {[%clk 0:00:40.2]}
31... g6 {[%clk 0:00:03.3]} 32. Rc5 {[%clk 0:00:39.8]} 32... f5+ {[%clk
0:00:02.5]} 33. Kf3 {[%clk 0:00:39.1]} 33... Kd6 {[%clk 0:00:01.9]} 34. Rxa5
{[%clk 0:00:39.1]} 34... Nc6 {[%clk 0:00:02.5]} 35. Ra8 {[%clk 0:00:37.2]} 35...
Nd4+ {[%clk 0:00:02]} 36. Kf4 {[%clk 0:00:37.7]} 1-0

[Event "*** Titled Tuesday Blitz"]
[Site "Chess.com"]
[Date "2020.05.05"]
[Round "6"]
[White "jguerramzllo"]
[Black "vanyakuba"]
[Result "1-0"]
[WhiteElo "2624"]
[BlackElo "2434"]
[TimeControl "180+1"]
[EndTime "11:07:12 PDT"]
[Termination "jguerramzllo won by resignation"]

1. c4 {[%clk 0:03:00.9]} 1... e6 {[%clk 0:02:59.8]} 2. Nf3 {[%clk 0:02:59.5]}
2... d5 {[%clk 0:03:00.1]} 3. g3 {[%clk 0:02:59.3]} 3... c5 {[%clk 0:03:00.4]}
4. Bg2 {[%clk 0:02:58.1]} 4... Nc6 {[%clk 0:03:00.2]} 5. O-O {[%clk 0:02:52.9]}
5... Nf6 {[%clk 0:03:00.2]} 6. b3 {[%clk 0:02:50.6]} 6... d4 {[%clk 0:02:58.6]}
7. e3 {[%clk 0:02:47.5]} 7... Be7 {[%clk 0:02:56.8]} 8. exd4 {[%clk 0:02:46.1]}
8... cxd4 {[%clk 0:02:57.7]} 9. d3 {[%clk 0:02:45.6]} 9... O-O {[%clk
0:02:54.9]} 10. Re1 {[%clk 0:02:45.5]} 10... a5 {[%clk 0:02:37.1]} 11. Na3
{[%clk 0:02:42.9]} 11... Bb4 {[%clk 0:02:33.7]} 12. Re2 {[%clk 0:02:35.9]} 12...
Bc3 {[%clk 0:02:22.3]} 13. Bb2 {[%clk 0:02:27.3]} 13... Bxb2 {[%clk 0:01:50.4]}
14. Rxb2 {[%clk 0:02:28.2]} 14... e5 {[%clk 0:01:49.1]} 15. Ng5 {[%clk
0:02:24.4]} 15... Re8 {[%clk 0:01:45.4]} 16. Nb5 {[%clk 0:02:19.3]} 16... Bg4
{[%clk 0:01:37.3]} 17. Bf3 {[%clk 0:02:16.9]} 17... Bf5 {[%clk 0:01:12.7]} 18.
Qe2 {[%clk 0:02:03.7]} 18... a4 {[%clk 0:00:49.9]} 19. b4 {[%clk 0:01:54.9]}
19... a3 {[%clk 0:00:48.5]} 20. Rb3 {[%clk 0:01:54.5]} 20... Ra4 {[%clk
0:00:34.2]} 21. Rab1 {[%clk 0:01:53.9]} 21... e4 {[%clk 0:00:18.9]} 22. Nxe4
{[%clk 0:01:53]} 22... Nxe4 {[%clk 0:00:19]} 23. Bxe4 {[%clk 0:01:52.1]} 23...
Bxe4 {[%clk 0:00:19.3]} 24. dxe4 {[%clk 0:01:52.2]} 24... f5 {[%clk 0:00:16.9]}
25. c5 {[%clk 0:01:39.5]} 25... Rxe4 {[%clk 0:00:14.3]} 26. Qc4+ {[%clk
0:01:38.8]} 26... Kh8 {[%clk 0:00:13.7]} 27. Nd6 {[%clk 0:01:39]} 27... Re7
{[%clk 0:00:08.3]} 28. Nf7+ {[%clk 0:01:34.5]} 28... Rxf7 {[%clk 0:00:08.4]} 29.
Qxf7 {[%clk 0:01:35.1]} 29... f4 {[%clk 0:00:04.1]} 30. Qxf4 {[%clk 0:01:32.6]}
30... h6 {[%clk 0:00:03.9]} 31. b5 {[%clk 0:01:28.7]} 31... Na5 {[%clk
0:00:03.8]} 32. Rd3 {[%clk 0:01:27.1]} 32... Qd5 {[%clk 0:00:02.8]} 33. Rbd1
{[%clk 0:00:55.4]} 33... Qxa2 {[%clk 0:00:02.9]} 34. Rxd4 {[%clk 0:00:55.6]}
34... Rxd4 {[%clk 0:00:03.3]} 35. Rxd4 {[%clk 0:00:55.8]} 35... Qg8 {[%clk
0:00:02.8]} 36. Ra4 {[%clk 0:00:48.6]} 36... Nc4 {[%clk 0:00:01.5]} 37. Qxc4
{[%clk 0:00:47.1]} 37... a2 {[%clk 0:00:01.7]} 1-0

[Event "*** Titled Tuesday Blitz"]
[Site "Chess.com"]
[Date "2020.05.05"]
[Round "6"]
[White "Vusatiuk_Vladimir"]
[Black "tsvet2005"]
[Result "1-0"]
[WhiteElo "2346"]
[BlackElo "2501"]
[TimeControl "180+1"]
[EndTime "11:07:14 PDT"]
[Termination "Vusatiuk_Vladimir won by checkmate"]

1. e4 {[%clk 0:03:00.9]} 1... c5 {[%clk 0:03:00.6]} 2. Nf3 {[%clk 0:03:01.1]}
2... d6 {[%clk 0:03:01.1]} 3. d4 {[%clk 0:03:01.1]} 3... cxd4 {[%clk 0:03:02]}
4. Qxd4 {[%clk 0:03:01.8]} 4... Nf6 {[%clk 0:03:02.9]} 5. Be2 {[%clk 0:03:01.6]}
5... Nc6 {[%clk 0:03:02.8]} 6. Qe3 {[%clk 0:03:02]} 6... g6 {[%clk 0:03:00.9]}
7. c4 {[%clk 0:03:01.6]} 7... Bg7 {[%clk 0:03:01]} 8. Nc3 {[%clk 0:03:01]} 8...
O-O {[%clk 0:03:01.1]} 9. O-O {[%clk 0:03:01.3]} 9... Nd7 {[%clk 0:03:00.3]} 10.
b3 {[%clk 0:03:01]} 10... a6 {[%clk 0:02:53.8]} 11. Bb2 {[%clk 0:03:00.6]} 11...
Nde5 {[%clk 0:02:53.9]} 12. Nxe5 {[%clk 0:02:43.8]} 12... Bxe5 {[%clk
0:02:54.8]} 13. Rfd1 {[%clk 0:02:41.5]} 13... e6 {[%clk 0:02:43.9]} 14. Rac1
{[%clk 0:02:33.8]} 14... Qe7 {[%clk 0:02:43.2]} 15. Ba3 {[%clk 0:02:28.7]} 15...
Rd8 {[%clk 0:02:36.8]} 16. f4 {[%clk 0:02:28.1]} 16... Bg7 {[%clk 0:02:28.6]}
17. e5 {[%clk 0:02:25.7]} 17... Qh4 {[%clk 0:02:22.7]} 18. Bxd6 {[%clk
0:02:15.3]} 18... Bd7 {[%clk 0:02:15.5]} 19. Bc7 {[%clk 0:02:13.3]} 19... Be8
{[%clk 0:02:15.2]} 20. Bxd8 {[%clk 0:02:12.5]} 20... Nxd8 {[%clk 0:02:16.1]} 21.
Bf3 {[%clk 0:02:05.2]} 21... Nc6 {[%clk 0:02:02.2]} 22. Ne4 {[%clk 0:02:04.2]}
22... Qh6 {[%clk 0:01:55.8]} 23. Rc3 {[%clk 0:01:46]} 23... Bf8 {[%clk
0:01:47.9]} 24. Nd6 {[%clk 0:01:43.8]} 24... Rb8 {[%clk 0:01:24.9]} 25. Rcd3
{[%clk 0:01:34.3]} 25... Nb4 {[%clk 0:01:10.5]} 26. Nxe8 {[%clk 0:01:25.7]}
26... Rxe8 {[%clk 0:01:09.3]} 27. Rd8 {[%clk 0:01:25.9]} 27... Rxd8 {[%clk
0:00:53.1]} 28. Rxd8 {[%clk 0:01:26.8]} 28... b6 {[%clk 0:00:54]} 29. a3 {[%clk
0:01:20.7]} 29... Nc2 {[%clk 0:00:52.6]} 30. Qc1 {[%clk 0:01:19.8]} 30... Kg7
{[%clk 0:00:51.2]} 31. Rxf8 {[%clk 0:01:14.5]} 31... Kxf8 {[%clk 0:00:52.1]} 32.
Qxc2 {[%clk 0:01:13.4]} 32... Qxf4 {[%clk 0:00:52.7]} 33. h3 {[%clk 0:00:56]}
33... Qxe5 {[%clk 0:00:52.2]} 34. b4 {[%clk 0:00:53.9]} 34... Qe3+ {[%clk
0:00:50.1]} 35. Kh1 {[%clk 0:00:48.8]} 35... Qe1+ {[%clk 0:00:44.9]} 36. Kh2
{[%clk 0:00:49.1]} 36... Qe5+ {[%clk 0:00:45.4]} 37. g3 {[%clk 0:00:49.3]} 37...
a5 {[%clk 0:00:44.4]} 38. c5 {[%clk 0:00:47.9]} 38... axb4 {[%clk 0:00:44.2]}
39. axb4 {[%clk 0:00:48.8]} 39... bxc5 {[%clk 0:00:44.5]} 40. bxc5 {[%clk
0:00:49.1]} 40... Ke7 {[%clk 0:00:44.4]} 41. c6 {[%clk 0:00:49]} 41... Qc7
{[%clk 0:00:44.6]} 42. Qc5+ {[%clk 0:00:47.3]} 42... Kf6 {[%clk 0:00:43.9]} 43.
Qd4+ {[%clk 0:00:46.5]} 43... e5 {[%clk 0:00:44.3]} 44. Qd7 {[%clk 0:00:45.4]}
44... Qb6 {[%clk 0:00:39.9]} 45. c7 {[%clk 0:00:43.9]} 45... Qf2+ {[%clk
0:00:39.2]} 46. Bg2 {[%clk 0:00:44.2]} 46... e4 {[%clk 0:00:40.1]} 47. c8=Q
{[%clk 0:00:42.2]} 47... e3 {[%clk 0:00:41]} 48. Qd4+ {[%clk 0:00:41.1]} 48...
Kg5 {[%clk 0:00:40]} 49. Qh4# {[%clk 0:00:34.6]} 1-0

[Event "*** Titled Tuesday Blitz"]
[Site "Chess.com"]
[Date "2020.05.05"]
[Round "6"]
[White "AwesomeMango"]
[Black "BelaKis"]
[Result "0-1"]
[WhiteElo "2210"]
[BlackElo "2066"]
[TimeControl "180+1"]
[EndTime "11:07:14 PDT"]
[Termination "BelaKis won by resignation"]

1. e4 {[%clk 0:03:00.9]} 1... g6 {[%clk 0:02:59.3]} 2. d4 {[%clk 0:03:00.1]}
2... Bg7 {[%clk 0:02:59.7]} 3. Nc3 {[%clk 0:02:56.8]} 3... c5 {[%clk 0:02:59.9]}
4. Be3 {[%clk 0:02:52.8]} 4... Qa5 {[%clk 0:02:54.4]} 5. Nf3 {[%clk 0:02:33.4]}
5... Nf6 {[%clk 0:02:52.1]} 6. Qd2 {[%clk 0:02:28.3]} 6... Ng4 {[%clk
0:02:49.6]} 7. Nd5 {[%clk 0:02:20.6]} 7... Qd8 {[%clk 0:02:46.1]} 8. Bf4 {[%clk
0:02:13.4]} 8... d6 {[%clk 0:02:36.9]} 9. dxc5 {[%clk 0:02:06.5]} 9... Bxb2
{[%clk 0:02:26.1]} 10. Rd1 {[%clk 0:01:58.8]} 10... O-O {[%clk 0:01:55.6]} 11.
cxd6 {[%clk 0:01:50.5]} 11... exd6 {[%clk 0:01:51.1]} 12. c3 {[%clk 0:01:45.2]}
12... Ba3 {[%clk 0:01:48.7]} 13. h3 {[%clk 0:01:35.2]} 13... Ne5 {[%clk
0:01:41.9]} 14. Nxe5 {[%clk 0:01:29.8]} 14... dxe5 {[%clk 0:01:31.9]} 15. Bxe5
{[%clk 0:01:29.6]} 15... Nd7 {[%clk 0:01:28.1]} 16. Nf6+ {[%clk 0:01:23.4]}
16... Nxf6 {[%clk 0:01:22.3]} 17. Qxd8 {[%clk 0:01:23]} 17... Rxd8 {[%clk
0:01:22.2]} 18. Rxd8+ {[%clk 0:01:22.9]} 18... Kg7 {[%clk 0:01:22.4]} 19. Bc4
{[%clk 0:01:19.1]} 19... Be7 {[%clk 0:01:21.1]} 20. Rd1 {[%clk 0:01:14.8]} 20...
Kg8 {[%clk 0:01:13]} 21. O-O {[%clk 0:01:11.8]} 21... a6 {[%clk 0:00:58.4]} 22.
Rfe1 {[%clk 0:01:02.9]} 22... Nd7 {[%clk 0:00:39.9]} 23. Bd4 {[%clk 0:00:54]}
23... Nf8 {[%clk 0:00:38.9]} 24. Bb6 {[%clk 0:00:49.7]} 24... Kg7 {[%clk
0:00:26.8]} 25. e5 {[%clk 0:00:43.3]} 25... Bf5 {[%clk 0:00:23.6]} 26. g4 {[%clk
0:00:41.7]} 26... Bc2 {[%clk 0:00:23.4]} 27. Rd2 {[%clk 0:00:39]} 27... Ba4
{[%clk 0:00:23.4]} 28. f4 {[%clk 0:00:36.3]} 28... Rc8 {[%clk 0:00:21.3]} 29.
Bd5 {[%clk 0:00:32.7]} 29... Rxc3 {[%clk 0:00:20.9]} 30. Bxb7 {[%clk 0:00:29.3]}
30... Ne6 {[%clk 0:00:20]} 31. Be3 {[%clk 0:00:23.5]} 31... Bh4 {[%clk
0:00:19.7]} 32. Bg2 {[%clk 0:00:19.4]} 32... Bxe1 {[%clk 0:00:18.4]} 33. Re2
{[%clk 0:00:16]} 33... Bg3 {[%clk 0:00:18.3]} 34. Bf2 {[%clk 0:00:15.4]} 34...
Bxf4 {[%clk 0:00:17.9]} 0-1

[Event "*** Titled Tuesday Blitz"]
[Site "Chess.com"]
[Date "2020.05.05"]
[Round "6"]
[White "vwnv7"]
[Black "Skatchkov_V"]
[Result "0-1"]
[WhiteElo "2327"]
[BlackElo "2560"]
[TimeControl "180+1"]
[EndTime "11:07:15 PDT"]
[Termination "Skatchkov_V won by resignation"]

1. c4 {[%clk 0:03:00.9]} 1... e5 {[%clk 0:02:59.1]} 2. Nc3 {[%clk 0:03:00.3]}
2... Nf6 {[%clk 0:02:59.3]} 3. g3 {[%clk 0:03:00]} 3... d5 {[%clk 0:02:59.6]} 4.
cxd5 {[%clk 0:03:00.2]} 4... Nxd5 {[%clk 0:02:59.7]} 5. Bg2 {[%clk 0:03:00.9]}
5... Nb6 {[%clk 0:02:59.6]} 6. Nf3 {[%clk 0:03:01.3]} 6... Nc6 {[%clk
0:02:59.5]} 7. a3 {[%clk 0:02:58.7]} 7... Be6 {[%clk 0:02:58]} 8. O-O {[%clk
0:02:56.6]} 8... Be7 {[%clk 0:02:57.9]} 9. b4 {[%clk 0:02:54.6]} 9... O-O {[%clk
0:02:30.6]} 10. d3 {[%clk 0:02:52.6]} 10... f6 {[%clk 0:02:28.7]} 11. Bb2 {[%clk
0:02:30.8]} 11... a5 {[%clk 0:02:20.4]} 12. b5 {[%clk 0:02:30.5]} 12... Nd4
{[%clk 0:02:20.1]} 13. Nd2 {[%clk 0:02:13.7]} 13... Qc8 {[%clk 0:02:16.8]} 14.
e3 {[%clk 0:02:10.7]} 14... Nf5 {[%clk 0:02:16.8]} 15. Rc1 {[%clk 0:01:56.9]}
15... Rd8 {[%clk 0:02:16.1]} 16. Na4 {[%clk 0:01:21.1]} 16... Qd7 {[%clk
0:02:02.1]} 17. Bxb7 {[%clk 0:00:56.9]} 17... Rab8 {[%clk 0:01:55.3]} 18. Bc6
{[%clk 0:00:49.7]} 18... Qxd3 {[%clk 0:01:52.8]} 19. Nxb6 {[%clk 0:00:44.5]}
19... cxb6 {[%clk 0:01:49]} 20. Ne4 {[%clk 0:00:38.4]} 20... Bxa3 {[%clk
0:01:46.6]} 21. Bxa3 {[%clk 0:00:34.9]} 21... Qxa3 {[%clk 0:01:44.4]} 22. Qf3
{[%clk 0:00:29.3]} 22... Qe7 {[%clk 0:01:07.8]} 23. Rc3 {[%clk 0:00:27.7]} 23...
a4 {[%clk 0:01:07.3]} 24. Ra1 {[%clk 0:00:26.3]} 24... Qb4 {[%clk 0:00:58.3]}
25. Qg4 {[%clk 0:00:19]} 25... Kh8 {[%clk 0:00:54.3]} 26. Qe2 {[%clk 0:00:15.6]}
26... Ne7 {[%clk 0:00:48.6]} 27. f3 {[%clk 0:00:13.2]} 27... f5 {[%clk
0:00:44.7]} 28. Ng5 {[%clk 0:00:06.6]} 28... Qxc3 {[%clk 0:00:43.9]} 29. Nxe6
{[%clk 0:00:05.2]} 29... Qxa1+ {[%clk 0:00:43.9]} 30. Kg2 {[%clk 0:00:06.1]}
30... Qc1 {[%clk 0:00:38.3]} 31. Nxd8 {[%clk 0:00:05.6]} 31... Rxd8 {[%clk
0:00:37.2]} 32. Kh3 {[%clk 0:00:06.2]} 32... Nxc6 {[%clk 0:00:37.5]} 33. bxc6
{[%clk 0:00:06]} 33... Qxc6 {[%clk 0:00:38.3]} 0-1